bitfinex/quotes_BTCUSD_20260221
["timestamp","ask_amount","ask_price","bid_price","bid_amount"]
[1771638032925,0.07349631,68031.0,68025.0,0.07372075]
[1771638033249,0.00011715,68039.0,68025.0,0.00022]
[1771638033250,0.07349837,68029.0,68025.0,0.00022]
[1771638036354,0.07349837,68029.0,68028.0,0.00022]
[1771638036955,0.07349986,68028.0,68025.0,0.00022]
[1771638037524,0.07349837,68029.0,68025.0,0.00022]
[1771638039579,0.07349944,68028.0,68023.0,0.07350442]
[1771638040204,0.07349944,68028.0,68022.0,0.07350379]
[1771638040731,0.07349944,68028.0,68022.0,0.07379679]
[1771638040935,0.07349944,68028.0,68023.0,0.07350434]
[1771638041605,0.07349944,68028.0,68023.0,0.07379734]
[1771638042182,0.07349987,68029.0,68023.0,0.07379734]
[1771638043107,0.07349987,68029.0,68024.0,0.07350333]
[1771638043690,0.07349987,68029.0,68025.0,0.00022]
[1771638044773,0.07349987,68029.0,68025.0,0.000513]
[1771638046008,0.09790269,68032.0,68015.0,0.17674]
[1771638046216,0.0002,68034.0,68012.0,0.07351586]
[1771638046217,0.0735104,68018.0,68012.0,0.07351586]
[1771638046428,0.07350997,68018.0,68012.0,0.07351586]
[1771638046862,0.07351145,68017.0,68011.0,0.07373566]
[1771638047223,0.07351174,68018.0,68011.0,0.07373566]
[1771638047445,0.07362883,68018.0,68012.0,0.07351608]
[1771638047630,0.07362883,68018.0,68011.0,0.07373566]
[1771638047816,0.02431603,68018.0,68010.0,0.00016]
[1771638048038,0.07351349,68015.0,68010.0,0.00016]
[1771638048442,0.07351502,68015.0,68010.0,0.00016]
[1771638048642,0.00011709,68018.0,68005.0,0.00018]
[1771638048643,0.07351594,68013.0,68007.0,0.07352113]
[1771638049583,0.07351594,68013.0,68006.0,0.07352113]
[1771638049721,0.07351412,68015.0,68009.0,0.07351928]
[1771638049934,0.07351243,68016.0,68010.0,0.07351857]
[1771638050147,0.0735151,68014.0,68008.0,0.07352067]
[1771638051048,0.07351562,68013.0,68006.0,0.07352265]
[1771638051268,0.07351562,68013.0,68007.0,0.0735211]
[1771638051665,0.09771456,68013.0,68011.0,0.00022]
[1771638051867,0.09771456,68013.0,68007.0,0.0735211]
[1771638051868,0.09771537,68012.0,68006.0,0.07352272]
[1771638053299,0.02419894,68012.0,68007.0,0.07352178]
[1771638054645,0.02419894,68012.0,68009.0,0.073519]
[1771638054867,0.02419894,68012.0,68009.0,0.07337224]
[1771638054991,0.07351353,68015.0,68009.0,0.07337224]
[1771638057110,0.07351353,68015.0,68009.0,0.07322549]
[1771638057715,0.0735149,68014.0,68008.0,0.0735187]
[1771638057870,0.07233653,68015.0,68008.0,0.0735187]
[1771638058076,0.07233653,68015.0,68009.0,0.07351931]
[1771638058598,0.07233653,68015.0,68010.0,0.07351858]
[1771638058771,0.00011709,68018.0,68007.0,0.29408698]
[1771638058772,0.00011709,68018.0,68015.0,0.07351242]
[1771638058987,0.00011709,68018.0,68016.0,0.07351198]
[1771638059609,0.00011709,68018.0,68015.0,0.07351139]
[1771638060445,0.00011709,68018.0,68015.0,0.07336462]
[1771638061266,0.00011709,68018.0,68015.0,0.07321787]
[1771638062623,0.31821328,68024.0,68012.0,0.29406479]
[1771638062624,0.07350617,68023.0,68016.0,0.07351192]
[1771638062840,0.07350602,68022.0,68016.0,0.07390311]
[1771638063037,0.07350832,68020.0,68016.0,0.00039119]
[1771638067148,0.07370832,68020.0,68016.0,0.00039119]
[1771638072500,0.29400594,68026.0,68016.0,0.00039119]
[1771638072501,0.17672,68030.0,68025.0,0.07350196]
[1771638072644,0.07349999,68028.0,68022.0,0.09695981]
[1771638072859,0.0735006,68027.0,68020.0,0.02324776]
[1771638073054,0.0735006,68027.0,68020.0,0.09675497]
[1771638073264,0.0735006,68027.0,68021.0,0.07350611]
[1771638073666,0.07350105,68028.0,68021.0,0.07350611]
[1771638074078,0.07350081,68027.0,68021.0,0.07350611]
[1771638074526,0.07350105,68028.0,68022.0,0.07350529]
[1771638081662,0.07370105,68028.0,68022.0,0.07350529]
[1771638081926,0.0735004,68027.0,68022.0,0.07350529]
[1771638082171,0.0735004,68027.0,68021.0,0.07350611]
[1771638085337,0.07350139,68026.0,68021.0,0.07350611]
[1771638086351,0.0735004,68027.0,68021.0,0.07350611]
[1771638087222,0.07370098,68028.0,68022.0,0.07350552]
[1771638088480,0.0002,68027.0,68022.0,0.07350552]
[1771638088685,0.0002,68027.0,68023.0,0.0735044]
[1771638088891,0.0002,68027.0,68020.0,0.02324776]
[1771638089086,0.07370195,68027.0,68020.0,0.09675526]
[1771638089288,0.07350181,68026.0,68020.0,0.09675526]
[1771638089444,0.07350181,68026.0,68020.0,0.0736675]
[1771638089963,0.07370195,68027.0,68021.0,0.07350634]
[1771638090334,0.07370195,68027.0,68020.0,0.0736675]
[1771638090582,0.07370195,68027.0,68021.0,0.07350621]
[1771638090784,0.07350182,68026.0,68021.0,0.0735064]
[1771638091086,0.07370195,68027.0,68021.0,0.0735064]
[1771638091896,0.07370195,68027.0,68022.0,0.07350547]
[1771638093293,0.0002,68027.0,68023.0,0.07350405]
[1771638094650,0.0002,68027.0,68024.0,0.07350343]
[1771638096068,0.0002,68027.0,68024.0,0.07335671]
[1771638096268,0.0002,68027.0,68025.0,0.07350236]
[1771638097844,0.0002,68027.0,68024.0,0.07335671]
[1771638098516,0.0002,68027.0,68025.0,0.07350222]
[1771638098720,0.0002,68027.0,68024.0,0.07335671]
[1771638099345,0.0002,68027.0,68025.0,0.07350206]
[1771638101793,3.85e-05,68027.0,68025.0,0.07350206]
[1771638104189,3.85e-05,68027.0,68023.0,0.29401692]
[1771638104353,3.85e-05,68027.0,68025.0,0.07350139]
[1771638105402,0.02365042,68027.0,68022.0,0.07350519]
[1771638105606,0.02365042,68027.0,68020.0,0.00016]
[1771638105857,0.02365042,68027.0,68022.0,0.0735053]
[1771638107423,3.85e-05,68027.0,68022.0,0.0735053]
[1771638108431,3.85e-05,68027.0,68023.0,0.07350452]
[1771638110591,3.85e-05,68027.0,68024.0,0.07350334]
[1771638110954,3.85e-05,68027.0,68025.0,0.07350201]
[1771638111338,3.85e-05,68027.0,68024.0,0.07350334]
[1771638112748,3.85e-05,68027.0,68025.0,0.07350227]
[1771638113086,3.85e-05,68027.0,68024.0,0.07350334]
[1771638113455,3.85e-05,68027.0,68025.0,0.07350228]
[1771638113583,3.85e-05,68027.0,68024.0,0.07350334]
[1771638115858,3.85e-05,68027.0,68025.0,0.07350222]
[1771638116231,0.07337408,68030.0,68025.0,0.07350222]
[1771638116431,0.07321256,68030.0,68025.0,0.07350222]
[1771638116636,0.07321256,68030.0,68024.0,0.07372334]
[1771638119052,0.02361192,68031.0,68024.0,0.00022]
[1771638119251,0.75410357,68050.0,68028.0,0.07349825]
[1771638119252,0.07349298,68034.0,68028.0,0.07349825]
[1771638121310,0.07349298,68034.0,68028.0,0.07349874]
[1771638121805,0.07349424,68033.0,68027.0,0.0734985]
[1771638123567,0.07349424,68033.0,68028.0,0.07349901]
[1771638123784,0.02361192,68032.0,68028.0,0.07349901]
[1771638126269,0.02361192,68032.0,68027.0,0.0734985]
[1771638129920,0.02345044,68032.0,68027.0,0.0734985]
[1771638131096,0.02328892,68032.0,68027.0,0.0734985]
[1771638131302,0.02348892,68032.0,68027.0,0.0734985]
[1771638134021,0.02348892,68032.0,68028.0,0.07349898]
[1771638135087,0.02348892,68032.0,68027.0,0.0734985]
[1771638136217,0.0002,68032.0,68028.0,0.0734991]
[1771638137396,0.0002,68032.0,68027.0,0.0734985]
[1771638139399,0.0002,68032.0,68027.0,0.0737185]
[1771638141412,0.02336076,68032.0,68027.0,0.0737185]
[1771638143100,0.0002,68032.0,68027.0,0.0737185]
[1771638145215,0.07337058,68033.0,68027.0,0.0737185]
[1771638147675,0.0002,68032.0,68027.0,0.0737185]
[1771638148442,0.02336076,68032.0,68027.0,0.0737185]
[1771638150034,0.0002,68032.0,68028.0,0.07349912]
[1771638155003,0.07372615,68045.0,68039.0,0.07348697]
[1771638155201,0.07372615,68045.0,68035.0,0.02376704]
[1771638155202,0.000245,68045.0,68035.0,0.02376704]
[1771638155502,0.000245,68045.0,68041.0,0.07348459]
[1771638155699,0.000245,68045.0,68043.0,0.07348255]
[1771638155898,0.000245,68045.0,68044.0,0.07348186]
[1771638156112,0.0003484,68045.0,68043.0,0.07348255]
[1771638156303,0.0003484,68045.0,68042.0,0.07348218]
[1771638158031,0.07348186,68044.0,68030.0,0.1900791]
[1771638158243,0.07348186,68044.0,68039.0,0.07348705]
[1771638158244,0.07348187,68044.0,68039.0,0.07348705]
[1771638158551,0.02330745,68043.0,68038.0,0.07348824]
[1771638160554,0.02330745,68043.0,68039.0,0.07348726]
[1771638160757,0.02330745,68043.0,68040.0,0.07348618]
[1771638160986,0.02365585,68045.0,68040.0,0.07348618]
[1771638161231,0.0003484,68045.0,68040.0,0.07348618]
[1771638161649,0.0003484,68045.0,68041.0,0.07348509]
[1771638161807,0.0001034,68045.0,68041.0,0.07348509]
[1771638162023,0.0001856,68045.0,68041.0,0.07348509]
[1771638163039,0.0002,68043.0,68041.0,0.07348509]
[1771638163240,0.1768418,68050.0,68044.0,0.07348095]
[1771638163450,0.17692788,68050.0,68045.0,0.07348039]
[1771638165073,0.25040383,68050.0,68044.0,0.07348095]
[1771638165468,0.07347662,68049.0,68043.0,0.07348109]
[1771638166086,0.07347774,68048.0,68042.0,0.07348216]
[1771638166485,0.17692788,68050.0,68042.0,0.02378415]
[1771638166694,0.0734717,68054.0,68047.0,0.07347792]
[1771638166907,0.0734717,68054.0,68041.0,0.0734851]
[1771638166908,0.07347144,68054.0,68048.0,0.0734767]
[1771638167107,0.07347144,68054.0,68048.0,0.07356278]
[1771638170429,0.07367144,68054.0,68048.0,0.07356278]
[1771638170902,0.07347236,68053.0,68048.0,0.07356278]
[1771638171242,0.07347236,68053.0,68048.0,8.608e-05]
[1771638171436,0.07367144,68054.0,68048.0,0.07356332]
[1771638171635,0.07347224,68053.0,68048.0,0.07356332]
[1771638171845,0.07361644,68054.0,68048.0,0.07356332]
[1771638172067,0.0002,68054.0,68051.0,0.07347382]
[1771638173393,0.0001218,68057.0,68052.0,0.07347225]
[1771638173540,0.0001218,68057.0,68053.0,0.07347185]
[1771638173770,0.0001218,68057.0,68052.0,0.07347225]
[1771638174435,0.07358996,68057.0,68051.0,0.0734739]
[1771638175052,0.07358996,68057.0,68052.0,0.07347304]
[1771638175257,0.07358996,68057.0,68051.0,0.0734739]
[1771638175454,0.07346903,68056.0,68051.0,0.0734739]
[1771638175684,0.07346903,68056.0,68050.0,0.07347504]
[1771638177626,0.07347379,68052.0,68046.0,0.07347961]
[1771638180209,0.07347446,68051.0,68046.0,0.07347961]
[1771638180408,0.07347446,68051.0,68050.0,0.01]
[1771638181602,0.07347446,68051.0,68046.0,0.07347961]
[1771638181798,0.07347446,68051.0,68045.0,0.07347905]
[1771638182998,0.07347446,68051.0,68046.0,0.07347967]
[1771638183857,0.07347573,68050.0,68040.0,0.00038]
[1771638184048,0.07347573,68050.0,68044.0,0.07348144]
[1771638185101,0.09678364,68051.0,68045.0,0.07348077]
[1771638187011,0.09678364,68051.0,68045.0,0.07370077]
[1771638187563,0.29387931,68056.0,68045.0,0.07370077]
[1771638187564,0.1766818,68064.0,68046.0,0.02379704]
[1771638187862,0.07346608,68059.0,68052.0,0.07347246]
[1771638188312,0.07362514,68060.0,68045.0,0.00022]
[1771638188313,0.13438097,68056.0,68045.0,0.07369863]
[1771638188468,0.14291164,68064.0,68050.0,0.00016]
[1771638188684,0.16719573,68055.0,68049.0,0.07347576]
[1771638188955,0.16719573,68055.0,68049.0,0.07347598]
[1771638189439,0.16719573,68055.0,68050.0,0.07347505]
[1771638189641,0.14275784,68051.0,68045.0,0.00022]
[1771638189875,0.16719573,68051.0,68047.0,0.0734777]
[1771638190077,0.16719573,68051.0,68048.0,0.07347745]
[1771638191525,0.258,68054.0,68048.0,0.07347745]
[1771638192437,0.258,68054.0,68049.0,0.07347634]
[1771638192636,0.14275784,68053.0,68049.0,0.07347634]
[1771638192837,0.14275784,68053.0,68048.0,0.07347745]
[1771638193169,0.16719573,68053.0,68048.0,0.07347745]
[1771638193373,0.16719573,68053.0,68045.0,0.00022]
[1771638193535,0.16719573,68053.0,68050.0,0.07347478]
[1771638198023,0.14275784,68053.0,68050.0,0.07347478]
[1771638201303,0.2582,68054.0,68050.0,0.07347478]
[1771638202101,0.2582,68054.0,68051.0,0.07347403]
[1771638202306,0.2582,68054.0,68050.0,0.07347478]
[1771638203063,0.25844,68053.0,68051.0,0.073474]
[1771638210673,0.25844,68053.0,68050.0,0.07347478]
[1771638211294,0.25844,68053.0,68045.0,0.00022]
[1771638211519,0.13438097,68051.0,68040.0,0.0005018]
[1771638211710,0.02443789,68050.0,68041.0,0.0734851]
[1771638212016,0.02443789,68050.0,68040.0,0.02356444]
[1771638212017,0.02443789,68050.0,68045.0,0.07370041]
[1771638212803,0.29408493,68054.0,68045.0,0.00022]
[1771638212804,0.0002,68054.0,68045.0,0.00022]
[1771638213003,0.0556,68053.0,68048.0,0.07347704]
[1771638213184,0.0556,68053.0,68047.0,0.07347822]
[1771638213985,0.12907236,68053.0,68047.0,0.07347822]
[1771638219566,0.0556,68053.0,68050.0,0.0734748]
[1771638219767,0.0556,68053.0,68048.0,0.07347586]
[1771638219983,0.07367157,68054.0,68048.0,0.07347586]
[1771638220198,0.25924,68052.0,68048.0,0.07347586]
[1771638221248,0.25924,68052.0,68047.0,0.07369696]
[1771638222087,0.25924,68052.0,68048.0,0.0734772]
[1771638223895,0.28410183,68052.0,68047.0,0.07369696]
[1771638224404,0.28410183,68052.0,68048.0,0.0734772]
[1771638224770,0.28410183,68052.0,68047.0,0.07369696]
[1771638226701,0.02486183,68051.0,68047.0,0.07369696]
[1771638227864,0.25924,68052.0,68047.0,0.07369696]
[1771638230192,0.33271326,68052.0,68047.0,0.07369696]
[1771638231688,0.07347326,68052.0,68047.0,0.07369696]
[1771638231887,0.25996,68051.0,68047.0,0.07369696]
[1771638235088,0.25996,68051.0,68048.0,0.07347718]
[1771638235234,0.25996,68051.0,68047.0,0.07369696]
[1771638236114,0.07367217,68053.0,68047.0,0.07369696]
[1771638236332,0.26024,68050.0,68047.0,0.00022]
[1771638237105,0.26024,68050.0,68047.0,0.07369836]
[1771638237255,0.07367217,68053.0,68047.0,0.07369836]
[1771638237456,0.26028,68050.0,68047.0,0.07369836]
[1771638238365,0.26028,68050.0,68047.0,0.00022]
[1771638238593,0.26028,68050.0,68047.0,0.07369857]
[1771638238798,0.26028,68050.0,68047.0,0.00022]
[1771638241542,0.02486183,68065.0,68050.0,0.00016]
[1771638241738,0.07346312,68062.0,68055.0,0.07346956]
[1771638241939,0.07346251,68062.0,68055.0,0.07346956]
[1771638242353,0.07346251,68062.0,68050.0,0.16614413]
[1771638242354,0.02486183,68072.0,68057.0,0.02401336]
[1771638242572,0.07346497,68060.0,68054.0,0.07347041]
[1771638242775,0.07346383,68061.0,68055.0,0.07346992]
[1771638243273,0.02486183,68063.0,68052.0,0.07347215]
[1771638243416,0.02486183,68058.0,68050.0,0.16614413]
[1771638243629,0.09832874,68058.0,68050.0,0.46004476]
[1771638243838,0.09832874,68058.0,68052.0,0.07347285]
[1771638244030,0.09832874,68058.0,68051.0,0.0734725]
[1771638244236,0.09832879,68058.0,68051.0,0.0734737]
[1771638244452,0.07346789,68057.0,68051.0,0.0734737]
[1771638244858,0.07346789,68057.0,68050.0,0.23961771]
[1771638245062,0.07347007,68055.0,68050.0,0.16614413]
[1771638245267,0.07346938,68056.0,68050.0,0.00016]
[1771638245485,0.07346938,68056.0,68050.0,0.07363533]
[1771638246661,0.07347003,68055.0,68050.0,0.07363533]
[1771638246890,0.07347003,68055.0,68047.0,0.29413387]
[1771638246891,0.07347295,68053.0,68047.0,0.00022]
[1771638247081,0.07347295,68053.0,68047.0,0.07369805]
[1771638247961,0.33395295,68053.0,68047.0,0.07369805]
[1771638248534,0.33395295,68053.0,68045.0,0.00022]
[1771638248535,0.28402776,68053.0,68045.0,0.00022]
[1771638248763,0.28402776,68053.0,68041.0,0.07348457]
[1771638248764,0.07347915,68047.0,68041.0,0.07348457]
[1771638248973,0.07347754,68048.0,68042.0,0.07348356]
[1771638253609,0.07347754,68048.0,68042.0,0.07370356]
[1771638254135,0.07347754,68048.0,68043.0,0.07348282]
[1771638255147,0.07347828,68049.0,68043.0,0.07348282]
[1771638257394,0.07347722,68050.0,68044.0,0.07348146]
[1771638257603,0.33415248,68053.0,68047.0,0.0734783]
[1771638258367,0.07347331,68052.0,68047.0,0.0734783]
[1771638258661,0.07347331,68052.0,68046.0,0.07347948]
[1771638260058,0.07347455,68051.0,68046.0,0.07347948]
[1771638260590,0.07347331,68052.0,68046.0,0.07347948]
[1771638261593,0.07347331,68052.0,68047.0,0.00022]
[1771638262638,0.26124,68051.0,68047.0,0.02459425]
[1771638262851,0.07346722,68058.0,68052.0,0.0734726]
[1771638263064,0.26128,68063.0,68059.0,0.07346566]
[1771638263308,0.26128,68063.0,68060.0,0.07346428]
[1771638263502,0.26128,68063.0,68059.0,0.07346531]
[1771638263811,0.26128,68063.0,68058.0,0.07346654]
[1771638264014,0.07346361,68061.0,68054.0,0.07347033]
[1771638264409,0.07368591,68064.0,68058.0,0.0734665]
[1771638266039,0.00022512,68064.0,68058.0,0.0734665]
[1771638266239,0.07368569,68064.0,68058.0,0.0734665]
[1771638266445,0.00022512,68064.0,68059.0,0.07346551]
[1771638266650,0.07368547,68064.0,68059.0,0.07346551]
[1771638267435,0.07368547,68064.0,68058.0,0.0734665]
[1771638268017,0.00022512,68064.0,68058.0,0.0734665]
[1771638268246,0.00042512,68064.0,68059.0,0.07346557]
[1771638270057,0.07346281,68062.0,68056.0,0.07346831]
[1771638270229,0.07346281,68062.0,68052.0,0.2938929]
[1771638270230,0.07346363,68061.0,68055.0,0.07346835]
[1771638270432,0.07346363,68061.0,68056.0,0.07346887]
[1771638270632,0.07346363,68061.0,68055.0,0.07346835]
[1771638270838,0.07346363,68061.0,68054.0,0.07346926]
[1771638271042,0.07346363,68061.0,68055.0,0.07346966]
[1771638271486,0.07346363,68061.0,68054.0,0.07346926]
[1771638271695,0.07346528,68060.0,68054.0,0.07347078]
[1771638271928,0.09701304,68060.0,68054.0,0.07347078]
[1771638274111,0.07346528,68060.0,68054.0,0.07347078]
[1771638274578,0.07366528,68060.0,68054.0,0.07347078]
[1771638275830,0.0002,68060.0,68055.0,0.07346964]
[1771638277639,0.07347178,68054.0,68041.0,0.29393984]
[1771638277854,0.07347232,68053.0,68047.0,0.07369831]
[1771638282125,0.07347348,68052.0,68047.0,0.00022]
[1771638282326,0.09681734,68052.0,68045.0,0.0734791]
[1771638282493,0.09681734,68052.0,68046.0,0.07347938]
[1771638282705,0.07347348,68052.0,68045.0,0.0734791]
[1771638282895,0.09681734,68052.0,68046.0,0.07347926]
[1771638283092,0.07347348,68052.0,68046.0,0.07347926]
[1771638287970,0.07347348,68052.0,68046.0,0.07369926]
[1771638290111,0.07347348,68052.0,68046.0,0.00022]
[1771638290308,0.02334386,68050.0,68040.0,0.0005018]
[1771638290555,0.02334386,68050.0,68045.0,0.07348071]
[1771638291914,0.09681929,68050.0,68045.0,0.07348071]
[1771638292994,0.00016,68050.0,68039.0,0.00022]
[1771638293294,0.07348192,68044.0,68039.0,0.07370696]
[1771638293852,0.07348192,68044.0,68039.0,0.00022]
[1771638294258,0.07347754,68048.0,68039.0,0.00022]
[1771638294450,0.07347754,68048.0,68038.0,0.00022]
[1771638294451,0.07347646,68049.0,68035.0,0.07371157]
[1771638294714,0.07348579,68041.0,68035.0,0.07371157]
[1771638295871,0.07354307,68041.0,68035.0,0.07371092]
[1771638297561,0.07349079,68036.0,68033.0,0.00022]
[1771638298211,0.07349079,68036.0,68030.0,0.07365637]
[1771638300199,0.09683342,68037.0,68030.0,0.07365637]
[1771638300330,0.07348761,68039.0,68033.0,0.07349316]
[1771638300944,0.0734886,68038.0,68032.0,0.0734932]
[1771638301145,0.07349009,68037.0,68031.0,0.07349418]
[1771638301767,0.0734906,68036.0,68031.0,0.07349418]
[1771638301971,0.07349295,68034.0,68030.0,0.00016]
[1771638302236,0.07349231,68036.0,68028.0,0.00022]
[1771638302368,0.07349231,68036.0,68030.0,0.07349684]
[1771638302567,0.31730044,68038.0,68028.0,0.00022]
[1771638302568,0.00016,68040.0,68028.0,0.00022]
[1771638302780,0.07348738,68039.0,68033.0,0.07349291]
[1771638308756,0.31726569,68046.0,68037.0,0.07348908]
[1771638308757,0.17548736,68045.0,68037.0,0.07348908]
[1771638309055,0.07348436,68042.0,68037.0,0.0001034]
[1771638309762,0.001,68039.0,68037.0,0.0001034]
[1771638310267,0.07348542,68041.0,68037.0,0.0001034]
[1771638311420,0.07348619,68040.0,68037.0,0.0001034]
[1771638311878,0.07348542,68041.0,68037.0,0.0001034]
[1771638316010,0.07348634,68040.0,68037.0,0.0001034]
[1771638316567,0.07348542,68041.0,68037.0,0.0001034]
[1771638316915,0.07348624,68040.0,68037.0,0.0001034]
[1771638319298,0.07368542,68041.0,68037.0,0.0001034]
[1771638319948,0.07348657,68040.0,68037.0,0.0001034]
[1771638324498,0.07368657,68040.0,68037.0,0.0001034]
[1771638325529,0.07348736,68039.0,68037.0,0.0001034]
[1771638325754,0.07368657,68040.0,68037.0,0.0001034]
[1771638330856,0.07368657,68040.0,68037.0,0.0003234]
[1771638339462,0.07348834,68038.0,68037.0,0.0003234]
[1771638346178,0.02442623,68049.0,68037.0,0.0003234]
[1771638346341,0.07348186,68044.0,68037.0,0.0003234]
[1771638346542,0.07348782,68039.0,68037.0,0.0003234]
[1771638346766,0.07348629,68040.0,68037.0,0.0003234]
[1771638346972,0.07368086,68045.0,68037.0,0.0003234]
[1771638347173,0.0734794,68047.0,68038.0,0.02442121]
[1771638347380,0.07348031,68046.0,68039.0,0.07348673]
[1771638347799,0.1770418,68050.0,68039.0,0.29394905]
[1771638347800,0.0004818,68050.0,68039.0,0.29394905]
[1771638347999,0.07395735,68050.0,68043.0,0.07348115]
[1771638348196,0.07395735,68050.0,68043.0,0.0734824]
[1771638348509,0.07395735,68050.0,68043.0,0.07348248]
[1771638348510,0.07395768,68050.0,68043.0,0.07348248]
[1771638348836,0.19140503,68050.0,68043.0,0.07348248]
[1771638349005,0.11744735,68049.0,68044.0,0.0734818]
[1771638349214,0.14187358,68049.0,68044.0,0.0734818]
[1771638349427,0.11744735,68048.0,68043.0,0.07348242]
[1771638349574,0.14187358,68048.0,68043.0,0.07348242]
[1771638349782,0.14187358,68048.0,68044.0,0.07348172]
[1771638350183,0.14187358,68048.0,68043.0,0.07348242]
[1771638350404,0.14187358,68048.0,68042.0,0.07348361]
[1771638350982,0.14187358,68048.0,68043.0,0.0734829]
[1771638353378,0.07347702,68049.0,68044.0,0.07348155]
[1771638353584,0.0004818,68050.0,68040.0,0.02442121]
[1771638353787,0.0004818,68050.0,68048.0,0.07347707]
[1771638354489,0.07347118,68054.0,68048.0,0.07347707]
[1771638357430,0.0002,68054.0,68043.0,0.00022]
[1771638357595,0.07347498,68051.0,68045.0,0.07347997]
[1771638358153,0.07347498,68051.0,68046.0,0.07347956]
[1771638358792,0.07347498,68051.0,68045.0,0.07347997]
[1771638359706,0.07347501,68052.0,68046.0,0.07347934]
[1771638360495,0.02462623,68054.0,68043.0,0.00022]
[1771638360707,0.07347753,68049.0,68043.0,0.00022]
[1771638361108,0.07347753,68049.0,68043.0,0.07370233]
[1771638361709,0.07347753,68050.0,68043.0,0.07370233]
[1771638361913,0.07347753,68050.0,68045.0,0.07348059]
[1771638362116,0.07347753,68050.0,68044.0,0.07348147]
[1771638362318,0.07347671,68049.0,68044.0,0.07348147]
[1771638362549,0.07347753,68050.0,68043.0,0.07370103]
[1771638362945,0.07347678,68049.0,68043.0,0.07370103]
[1771638363294,0.07347753,68050.0,68044.0,0.07348139]
[1771638364351,0.29409392,68052.0,68049.0,0.02442121]
[1771638364352,0.0002,68052.0,68049.0,0.02442121]
[1771638364555,0.0002,68052.0,68047.0,0.07347683]
[1771638364967,0.0002,68052.0,68048.0,0.07347721]
[1771638365372,0.0012,68052.0,68048.0,0.07347721]
[1771638365767,0.0002,68052.0,68048.0,0.07347721]
[1771638366648,0.0002,68052.0,68049.0,0.07347638]
[1771638367173,0.0002,68052.0,68048.0,0.07347721]
[1771638368945,0.0002,68052.0,68049.0,0.07347631]
[1771638371650,0.0002,68054.0,68053.0,0.07347214]
[1771638371855,0.0002,68054.0,68052.0,0.07347276]
[1771638372348,0.0002,68054.0,68052.0,0.07347321]
[1771638372578,0.0002,68054.0,68051.0,0.07347326]
[1771638372757,0.0002,68054.0,68050.0,0.07347333]
[1771638373060,0.07346946,68056.0,68050.0,0.07347333]
[1771638374016,0.07358966,68057.0,68051.0,0.07347376]
[1771638374218,0.19328935,68056.0,68050.0,0.07347333]
[1771638374842,0.11982022,68056.0,68051.0,0.07347382]
[1771638375048,0.11982022,68056.0,68052.0,0.07347273]
[1771638375848,0.0001218,68057.0,68048.0,0.00022]
[1771638375849,0.0001218,68057.0,68056.0,0.0734689]
[1771638376055,0.00016,68060.0,68059.0,0.07346566]
[1771638376260,0.00016,68060.0,68058.0,0.07346599]
[1771638376461,0.00016,68060.0,68057.0,0.07346579]
[1771638377073,0.00016,68060.0,68058.0,0.07346666]
[1771638377484,0.00016,68060.0,68057.0,0.07346579]
[1771638378701,0.00016,68060.0,68058.0,0.07346674]
[1771638380202,0.00016,68060.0,68057.0,0.07346579]
[1771638380397,0.00016,68060.0,68055.0,0.0734698]
[1771638381043,0.00016,68060.0,68045.0,0.02342673]
[1771638381211,0.11287026,68056.0,68050.0,0.07347441]
[1771638381747,0.18633958,68056.0,68050.0,0.07347441]
[1771638381946,0.07346932,68056.0,68051.0,0.07347425]
[1771638382156,0.11287026,68055.0,68051.0,0.07347425]
[1771638382973,0.11287026,68055.0,68050.0,0.07347441]
[1771638383371,0.11287026,68055.0,68049.0,0.07347469]
[1771638383721,0.11287026,68055.0,68050.0,0.07347483]
[1771638384500,0.11287026,68055.0,68051.0,0.07347423]
[1771638386295,0.11307026,68055.0,68050.0,0.07347483]
[1771638386707,0.11307026,68055.0,68051.0,0.07347419]
[1771638388261,0.18654075,68055.0,68049.0,0.07347457]
[1771638388789,0.13557866,68055.0,68050.0,0.07347511]
[1771638389412,0.11307026,68055.0,68050.0,0.07347511]
[1771638390078,0.0002,68055.0,68051.0,0.07347397]
[1771638390253,0.0002,68055.0,68052.0,0.07347268]
[1771638391059,0.07367093,68055.0,68048.0,0.00022]
[1771638391265,0.0225084,68052.0,68048.0,0.00022]
[1771638391459,0.11287026,68053.0,68048.0,0.00022]
[1771638392519,0.07347241,68053.0,68048.0,0.00022]
[1771638392828,0.07347427,68052.0,68048.0,0.00022]
[1771638393018,0.07347427,68052.0,68051.0,0.00022]
[1771638393382,0.07347391,68053.0,68051.0,0.00022]
[1771638393764,0.0734728,68054.0,68051.0,0.00022]
[1771638394242,0.07347219,68053.0,68051.0,0.00022]
[1771638397630,0.0734694,68056.0,68051.0,0.00022]
[1771638398609,0.13776589,68064.0,68051.0,0.00022]
[1771638398610,0.07362519,68060.0,68051.0,0.00022]
[1771638398788,0.07346609,68059.0,68053.0,0.07347182]
[1771638399185,0.07346683,68058.0,68053.0,0.07347182]
[1771638399566,0.07346683,68058.0,68052.0,0.07347322]
[1771638400117,0.073507,68058.0,68052.0,0.07347322]
[1771638400620,0.0002,68056.0,68052.0,0.07347322]
[1771638401420,0.0002,68056.0,68051.0,0.00022]
[1771638401948,0.07366915,68056.0,68051.0,0.07369404]
[1771638402494,0.0002,68056.0,68051.0,0.07369404]
[1771638403777,0.07346791,68057.0,68051.0,0.07369404]
[1771638403898,0.07346791,68057.0,68052.0,0.07347321]
[1771638408141,0.07366791,68057.0,68052.0,0.07347321]
[1771638409799,0.07366791,68057.0,68051.0,0.07369404]
[1771638410200,0.07366791,68057.0,68052.0,0.07347299]
[1771638411479,0.0002,68057.0,68052.0,0.07347299]
[1771638415551,0.07366794,68057.0,68052.0,0.07347299]
[1771638416022,0.07366794,68057.0,68051.0,0.07369404]
[1771638416257,0.07347028,68055.0,68051.0,0.00022]
[1771638420632,0.07347063,68056.0,68051.0,0.00022]
[1771638420904,0.07366959,68057.0,68051.0,0.00022]
[1771638421076,0.0002,68057.0,68055.0,0.07346993]
[1771638421297,4.017e-05,68058.0,68055.0,0.07346993]
[1771638421460,4.017e-05,68058.0,68054.0,0.07346923]
[1771638421647,4.017e-05,68058.0,68053.0,0.07347046]
[1771638422249,0.07347049,68055.0,68049.0,0.07347587]
[1771638423542,0.07350737,68058.0,68052.0,0.07347306]
[1771638423846,0.07346832,68057.0,68051.0,0.07347257]
[1771638424017,0.00016,68060.0,68054.0,0.07347072]
[1771638424218,0.07346601,68059.0,68053.0,0.07347147]
[1771638425172,0.07362508,68060.0,68054.0,0.07347096]
[1771638425351,0.07345739,68067.0,68051.0,0.02476429]
[1771638425639,0.07345953,68065.0,68052.0,0.02476429]
[1771638425836,0.07345976,68066.0,68060.0,0.07346425]
[1771638426390,0.07345903,68067.0,68061.0,0.07346343]
[1771638426961,0.07345836,68066.0,68060.0,0.07346425]
[1771638427161,0.07345836,68066.0,68059.0,0.07346397]
[1771638427412,0.07345938,68065.0,68059.0,0.07346397]
[1771638431471,0.07345938,68065.0,68060.0,0.02491986]
[1771638432119,0.07345938,68065.0,68059.0,0.07346397]